Workbook

Sheet Hinweise
A1: Hinweise:
A3: - | B3: Positionen mit 0,00€ nicht löschen, sondern bestehen lassen -> es könnte sein, dass diese Posten in den folgenden Jahren wieder benötigt werden und auch damit nicht in Vergessenheit gerät, was es mal gab
A7: - | B7: Die Summe der fortgeschriebenen finanziellen Mittel müssen immer manuell ins Deckblatt des nächsten Haushaltsjahres eingetragen werden.
A8: - | B8: Die Auflistung der fortgeschriebenen finanziellen Mittel im Detailblatt 1 und in den einzelnen Referaten dient als Übersicht, welcher Betrag übernommen werden muss.
A10: - | B10: Somit bildet die Spalte "Übertrag ins nächste HH-Jahr" des jeweiligen Jahres das "Nachrangig verwendbares Vj.-Budget" des nächsten Jahres.
A11: - | B11: Die Spalte "Zurückführung" errechnet sich aus dem nicht verwendeten "Nachrangigen Vj..-Budget" und gilt immer für das nächste Jahr.
A15: - | B15: WICHTIG:
B16: Der Haushaltsplan des Vorjahres, welcher maßgeblich für die Zahlen des neu geplanten Haushaltsplans ist, muss nach Abschluss des ersten Quartals endgültig auf die IST-Werte angepasst werden.
B17: Daraus sollte sich der erste Nachtragshaushalt ergeben, woraus sich wiederum eine Anpassung des Semesterbeitrags für das WS ergeben könnte.
B19: Für die Ermittlung der angeordneten Vermögensänderung des StuRa werden die geplanten Einnahmen als Obergrenze zu Grunde gelegt. Als Einnahmen werden dabei die vom Deckblatt berücksichtigt.
B20: Die Einnahmen aus der Selbstverwaltung, die Zinsen und die Beitragseinnahmen der Studierenden abzüglich der Zurückführung an Studierende.
B21: Den daraus ermittelten Einnahmen werden die noch verfügbaren finanziellen Mittel entgegengestellt, sind diese größer als die geplanten Einnahmen, so ergibt sich die Vermögensänderung auf der Einnahmenseite.
B22: Für die Ermittlung der angeordneten Vermögensänderung des StuRa auf der Ausgabenseite, werden die verfügbaren finanziellen Mittel mit der Mindestreserve verglichen.
B23: Sind diese kleiner als die Mindestreserve, so bildet die Differenz den Betrag der Vermögensänderung.

Sheet Deckblatt
A1: Haushaltsplan Student:innenschaft HTW Dresden | B1: 2025 | C1: Einnahmen | F1: Ausgaben
C2: PLAN | D2: IST | E2: SALDO | F2: PLAN | G2: IST | H2: SALDO
A3: Selbstverwaltung | C3: ='Detailblatt I'!J56 -> 40750 | D3: ='Detailblatt I'!K56 -> 8816.63 | E3: =D3-C3 -> -31933.37 | F3: ='Detailblatt I'!M56 -> 317256 | G3: ='Detailblatt I'!N56 -> 80995.66 | H3: =(F3-G3) -> 236260.34
A4: Beitragseinnahmen der Studentinnen | C4: ='Detailblatt II'!F26 -> 223200 | D4: ='Detailblatt II'!G26 -> 36125.33333 | E4: -187074.6667 | F4: ='Detailblatt II'!I26 -> 0 | G4: ='Detailblatt II'!J26 -> 0 | H4: =(F4-G4) -> 0
A5: Zinsen | C5: ='Detailblatt II'!F30 -> 0 | D5: ='Detailblatt II'!G30 -> 1574.45 | E5: 1574.45 | F5: ='Detailblatt II'!I30 -> 0 | G5: ='Detailblatt II'!J30 -> 0 | H5: =(F5-G5) -> 0
A6: Entnahme (=Einnahme) & Ansparen (=Ausgabe) von Vermögen | C6: =IF((Beitragsermittlung!B16)-('Detailblatt II'!F24+'Detailblatt II'!F25)>0,(Beitragsermittlung!B16)-('Detailblatt II'!F24+'Detailblatt II'!F25),0) -> 0 | D6: 0 | E6: 0 | F6: 6934 | G6: ='Detailblatt II'!G31 -> 0 | H6: =(F6-G6) -> 6934
A7: angeordnete Vermögensänderung lt. FO | C7: =Beitragsermittlung!B14 -> 0 | E7: 0 | F7: ='Detailblatt II'!I29 -> 0 | H7: =(F7-G7) -> 0
A8: Zurückführung an Studentinnen (StuRa) | C8: 60240 | D8: =C8 -> 60240 | E8: 0
A10: Gesamt: | C10: =SUM(C3:C9) -> 324190 | D10: 106756.4133 | E10: -217433.5867 | F10: 324190 | G10: 80995.66 | H10: 243194.34
A11: Berechnung des Semesterbeitrages:
B12: Planausgaben: | C12: =F10 -> 324190 | E12: In Zeile F6 (Ansparung) manuell einzutragen: | H12: =IF(Deckblatt!C10-Deckblatt!F10>0,Deckblatt!C10-Deckblatt!F10+F6,IF(C10=F10,"Haushaltsplan ist ausgeglichen!","Haushaltsplan ist nicht ausgeglichen!")) -> Haushaltsplan ist ausgeglichen!
A13: - | B13: Planeinnahmen: | C13: =C3+C5 -> 40750
A14: - | B14: Zurückführung: | C14: =C8+C9 -> 60240
A15: - | B15: Vermögensänderung | C15: =C7 -> 0
A16: = | B16: Gesamt: | C16: =C12-C13-C14-C15-F6 -> 216266
A17: / | B17: Beitragszahlungen/Jahr: | C17: ='Detailblatt II'!D24+('Detailblatt II'!D25/6*4) -> 7198.666667
A18: = | B18: Stud./Semester: | C18: =IF((C16-'Detailblatt II'!F23)/Deckblatt!C17<0,0,(C16-'Detailblatt II'!F23)/Deckblatt!C17) -> 25.02769031 | D18: Anzusetzender Semesterbeitrag: | F18: =ROUND((C18*2),0)/2 -> 25

Sheet Beitragsermittlung
A1: Ermittlung des Beitrages in Bezug auf die angeordnete Vermögensänderung
A3: Geplante Einnahmen | B3: =Deckblatt!F10-Deckblatt!C8-Deckblatt!C9-Deckblatt!F6 -> 257016
A4: verfügbare finanzielle Mittel | B4: ='fortgeschr. Mittel+Konto'!D9 -> 237211.72
A5: Obergrenze finanzielle Mittel | B5: =IF(B3<B4,B3,B4) -> 237211.72
A7: Vorgesehene Vermögenssenkung wegen zu hoher verfügbarer finanzieller Mittel | B7: =IF(Beitragsermittlung!B4>Deckblatt!F10-Deckblatt!F6,Beitragsermittlung!B4-Beitragsermittlung!B5,0) -> 0
A8: Mindestreserve | B8: =Mindestreserve!D18 -> 177910
A9: (Verfügbare finanzielle Mittel nach Vermögenssenkung) | B9: =B4-B7 -> 237211.72
A10: Untergrenze für verfügbare finanzielle Mittel durch Bemessung an der Mindestreserve wird erreicht | B10: =IF(B5<B8,B8,B5) -> 237211.72
A11: beabsichtigte Senkung der verfügbaren finanziellen Mittel | B11: =B4-B10 -> 0
A13: Obergrenze für verpflichtende Vermögenssenkung entgegen der (negativen) Erhebung von Beiträgen | B13: =IF(Beitragsermittlung!B11>(Deckblatt!F10-Deckblatt!F6-(Deckblatt!C3+Deckblatt!C5+Deckblatt!C8+Deckblatt!C9+'Detailblatt II'!F23)),Deckblatt!F10-Deckblatt!F6-(Deckblatt!C3+Deckblatt!C5+Deckblatt!C8+Deckblatt!C9+'Detailblatt II'!F23),Beitragsermittlung!B11) -> 0
A14: Vermögenssenkung wegen übermäßig verfügbarer finanzieller Mittel ohne negativen Semesterbeitrag | B14: =IF(B13<0,0,B13) -> 0
A16: restlich zu vereinnahmender Semesterbeitrag ab dem nächsten Sommersemester | B16: =(Deckblatt!F3+Deckblatt!F5+Deckblatt!F7+Deckblatt!F4)-(Deckblatt!C13+Deckblatt!C14+Deckblatt!C15+'Detailblatt II'!F23) -> 180166

Sheet Berechnung Lohnkosten
A1: Berechnung der anfallenden Lohnkosten in Abhängigkeit der besetzten Stellen
A3: langfristige Stellen | G3: mittelfristige Stellen – vor SoSe 25 | J3: mittelfristige Stellen – ab SoSe 25 | M3: Besetzungsgrad mittelfristige Stellen
B4: Fina. u. Verw. | C4: Assi. d. GF. | D4: Assi. d. GF | E4: Einarb. Assi. d. GF | M4: max. mögliche Stellen h/M | N4: =20*40 -> 800
A5: TVL (50%) | B5: E7 Stufe 4 | C5: E9b Stufe 4 | D5: E9b Stufe 4 | E5: E9b Stufe 4 | M5: geschaffene Stellen h/M | N5: 560
A6: Vertragsdauer | B6: unbefristet | C6: 2025 | D6: 01.2025 - 06.2025 | E6: 07.2025 - 12.2025 | G6: Brutto je Stunde | H6: 13.25 | J6: Brutto je Stunde | K6: 13.98 | M6: „Schaffungsgrad“ | N6: =N5/N4 -> 0.7
A7: Bruttoverdienst | B7: =3678.84/2 -> 1839.42 | C7: =4366.72/2 -> 2183.36 | D7: =4366.72/2 -> 2183.36 | E7: =4366.72/2 -> 2183.36 | G7: Brutto pro Monat | H7: =H6*40 -> 530 | J7: Brutto pro Monat | K7: =K6*40 -> 559.2 | M7: voraussichtlicher Besetzungsgrad | N7: 0.6
M8: entspricht besetzte Stellen h/M | N8: =N7*N5 -> 336
A9: Nebenkosten | G9: Nebenkosten | J9: Nebenkosten
A10: Rentenversicherung | B10: 146.98 | C10: 163.71 | D10: 163.71 | E10: 163.71 | G10: 15% Rentenvers. Pauschal | H10: =H$7*0.15 -> 79.5 | J10: 15% Rentenvers. Pauschal | K10: =K$7*0.15 -> 83.88
A11: Arbeitslosenversicherung | B11: 18.97 | C11: 21.12 | D11: 21.12 | E11: 21.12 | G11: 13% Krankenvers. Pauschal | H11: =H$7*0.13 -> 68.9 | J11: 13% Krankenvers. Pauschal | K11: =K$7*0.13 -> 72.696
A12: Krankenversicherung | B12: 125.64 | C12: 139.94 | D12: 139.94 | E12: 139.94 | G12: 2% Steuerpauschale | H12: =H$7*0.02 -> 10.6 | J12: 2% Steuerpauschale | K12: =K$7*0.02 -> 11.184
A13: Pflegeversicherung | B13: 16.2 | C13: 18.04 | D13: 18.04 | E13: 18.04 | G13: 0,9% Umlage 1 U1 | H13: =H$7*0.009 -> 4.77 | J13: 0,9% Umlage 1 U1 | K13: =K$7*0.009 -> 5.0328
A14: Umlage U1 | B14: 31.61 | C14: 35.21 | D14: 35.21 | E14: 35.21 | G14: 0,29% Umlage 2 U2 | H14: =H$7*0.0029 -> 1.537 | J14: 0,29% Umlage 2 U2 | K14: =K$7*0.0029 -> 1.62168
A15: Umlage U2 | B15: 5.53 | C15: 6.16 | D15: 6.16 | E15: 6.16 | G15: 0,06% Umlage 3 U3 | H15: =H$7*0.0006 -> 0.318 | J15: 0,06% Umlage 3 U3 | K15: =K$7*0.0006 -> 0.33552
A16: Umlage U3 | B16: 2.37 | C16: 2.64 | D16: 2.64 | E16: 2.64 | G16: 1,3% Unfallversicherung | H16: =H$7*0.013 -> 6.89 | J16: 1,3% Unfallversicherung | K16: =K$7*0.013 -> 7.2696
A17: Unfallversicherung (BG) | B17: 25.29 | C17: 28.16 | D17: 28.16 | E17: 28.16
A18: Summe Lohnnebenk. | B18: =SUM(B10:B17) -> 372.59 | C18: =SUM(C10:C17) -> 414.98 | D18: =SUM(D10:D17) -> 414.98 | E18: =SUM(E10:E17) -> 414.98 | G18: Summe Lohnnebenk. | H18: =SUM(H10:H16) -> 172.515 | J18: Summe Lohnnebenk. | K18: =SUM(K10:K16) -> 182.0196
A20: Bruttolohnkosten monatl. | B20: =B7+B18 -> 2212.01 | C20: =C7+C18 -> 2598.34 | D20: =D7+D18 -> 2598.34 | E20: =E7+E18 -> 2598.34 | G20: Bruttolohnkosten monatl. | H20: =H18+H7 -> 702.515 | J20: Bruttolohnkosten monatl. | K20: =K18+K7 -> 741.2196
A21: Jahressonderzahlung | B21: =B20*0.8814 -> 1949.665614 | C21: =C20*0.8814 -> 2290.176876 | D21: =D20*0.8814 -> 2290.176876 | E21: =E20*0.8814 -> 2290.176876
A25: Bruttolohnkosten jährl. | B25: =B20*12+B21 -> 28493.78561 | C25: =C20*12+C21 -> 33470.25688 | D25: =D20*6+D21 -> 17880.21688 | E25: =E20*6+E21 -> 17880.21688 | H25: =(H20*(N8/40))*3+H21 -> 17703.378 | K25: =(K20*(N8/40))*9 -> 56036.20176 | M25: Kosten Lohnbüro jährl. | N25: 3000
A27: Jahresgesamtkosten | B27: =H25+B25+C25+E25+K25+N25+D25 -> 174464.056

Sheet Überprüfung Beitragserhebung
A1: Überprüfung der Beitragserhebung während des laufenden Kalenderjahres | E1: Jahr - | F1: =Deckblatt!B1 -> 2025 | J1: Wintersemester
A3: Sachkontonr.
A4: 1200 | B4: Bankbestand
A5: 1210 | B5: Bank Zinsaktiv
A6: 1220 | B6: Paypal-Konto
A7: 1000 | B7: Kassenbestände
A8: 1010 | B8: Kasse Kino-Eintritt
A9: 1020 | B9: Kasse Kino-Snack
A10: 1368&1369 | B10: Corona-Fonds (verrechnet)
A11: 1591 | B11: Semesterticket
A12: 1734 | B12: sonstige notwendige Bereinigungen (Kautionen)
B13: Geldbestand | J13: =SUM(J4:J12) -> 0
B14: Mindestreserve | J14: =-(Mindestreserve!$D$18) -> -177910
B15: Planausgaben | J15: =-('Detailblatt I'!$O$56) -> -236628.23
B16: nachrangig verwendbares Vorjahresbudget | J16: =-('Detailblatt I'!$P$56) -> -63470
B17: ->davon verwendet | J17: ='Detailblatt I'!$Q$56 -> 0
B18: bereinigter Geldbestand | J18: =SUM(J13:J17) -> -478008.23
B19: Planeinnahmen | J19: =-('Detailblatt I'!$L$56) -> 31933.37
B20: voraussichtliche Beitragseinnahmen | J20: =-('Detailblatt II'!$H$25) -> 77100
B21: voraussichtlicher bereinigter Geldbestand | J21: =SUM(J18:J20) -> -368974.86
B22: durch Semesterbeitrag auszugleichender Geldbestand | J22: =J18+J19 -> -446074.86
B23: neuer Semesterbeitrag | J23: =ROUNDUP(-(J22/'Detailblatt II'!$D$25/4*6)/5,1)*5 -> 150.5
B24: durch Semesterbeitrag auszugleichender Geldbestand bei 50% Planeinnahmen | J24: =J18+J19/2 -> -462041.545
B25: neuer Semesterbeitrag bei Erfüllung von 50% der Planeinnahmen | J25: =ROUNDUP(-(J24/'Detailblatt II'!$D$25/4*6)/5,1)*5 -> 156
B26: voraussichtlicher bereinigter Geldbestand bei 50% Planeinnahmen | J26: =J24+J20 -> -384941.545
B27: durch Semesterbeitrag auszugleichender Geldbestand bei 25% Planeinnahmen | J27: =J18+J19/4 -> -470024.8875
B28: neuer Semesterbeitrag bei Erfüllung von 25% der Planeinnahmen | J28: =ROUNDUP(-(J27/'Detailblatt II'!$D$25/4*6)/5,1)*5 -> 158.5
B29: voraussichtlicher bereinigter Geldbestand bei 25% Planeinnahmen | J29: =J27+J20 -> -392924.8875

Sheet fortgeschr. Mittel+Konto
A1: Fortgeschriebene finanzielle Mittel + Bankkontostand | C1: Jahr - | D1: =Deckblatt!B1 -> 2025
F2: Nr. | G2: voraussichtliche Ausgaben | I2: Saldo
B3: Position | C3: erstellt am: | D3: 2024-11-18 | F3: 1. | G3: Personal (Okt.+Nov.+Dez. inkl. 13.Gehalt, ACON, Finanzamt) | I3: 45000
B4: Bank-/Kassenbestand bei Haushaltsplanerstellung | D4: =10912.12+191+155.33+31+66672.21+1221166.43+4230.97 -> 1303359.06
A5: - | B5: abzgl. voraussichtliche Ausgaben in | C5: =D1-1 -> 2024 | D5: =I25*(-1) -> -906337.34 | F5: 2. | G5: Finanzbeschlüsse aktuell noch nicht bezahlt in Summe | I5: 18517.28
A6: - | B6: nachrangig verwendbares Vorjahresbudget | D6: ='Detailblatt I'!P56*(-1)-'Detailblatt I'!Q56*(-1) -> -63470
A7: - | B7: Zurückführung an Student:innen gesamt | D7: =SUM(Deckblatt!C8:C9)*-1 -> -60240 | F7: 3. | G7: Schulungen/Konferenzen (KoSe) | I7: 0
A8: - | B8: Beitragseinnahmen anteilig WS 24/25 für 2025 | D8: ='Detailblatt II'!F23*-1 -> -36100 | F8: 4. | G8: voraussichtliche AE | I8: 17000
A9: = | B9: verfügbare finanzielle Mittel | D9: =D4+D5+D6+D7+D8 -> 237211.72 | F9: 5. | G9: offene Härtefallanträge | I9: 0
F10: 6. | G10: Software-Abos (AGENDA etc.) | I10: 270
F11: 7. | G11: Kosten für Wartung (Drucker etc.) | I11: 70
F12: 8. | G12: Kontoführung | I12: 120
F13: 9. | G13: Kino in der HTW & Co. | I13: 100
F14: 10. | G14: Kosten für Wahlen | I14: 0
F15: 11. | G15: Kaffeebestellung(en) | I15: 270
F16: 12. | G16: Ersatz- & Neuanschaffung | I16: =1020-192.84 -> 827.16
F17: 13. | G17: wahrscheinlich noch zu beschließende Finanzanträge | I17: 1000
F19: 14. | G19: Semesterticket Konto 1591 & 1592 | I19: =74819.25+748343.65 -> 823162.9
F21: 15. | G21: Konto 1704 | I21: 0
F22: 16. | G22: Konto 1450 (-) | I22: 0
F23: 17. | G23: Kaution 1734 | I23: 0
F24: 18. | G24: Nothilfefonds saldiert | I24: 0
F25: = | G25: Gesamtsumme: | I25: =SUM(I3:I24) -> 906337.34

Sheet Mindestreserve
A1: Mindestreserve | D1: Jahr - | E1: =Deckblatt!B1 -> 2025 | F1: Berechnungsgrundlage ist die aktuelle Finanzordnung (FO)
G2: - alle vertraglich festgeschriebenen Vereinbarungen müssen durch die Kapitalreserve abgedeckt sein
A3: vertragliche Vereinbarungen | D3: Planausgaben
A4: Student:innenrat
A5: Lohnkosten (Detailblatt I - Zelle M7) | D5: ='Detailblatt I'!M6 -> 175000
A6: Korrektur für "SHK"-Stellen | D6: 0
A7: …aktuell ohne Belegung… | D7: ------
A8: …aktuell ohne Belegung… | D8: ------
A9: Referat Finanzen
A10: Kontoführungsgebühren | D10: =Finanzen!G3 -> 600
A11: Buchhaltungssoftware AGENDA | D11: =Finanzen!G4 -> 1100
A12: …aktuell ohne Belegung… | D12: ------
A13: Referat Selbstverwaltung & Organisation
A14: Domains | D14: ='Verwaltung@'!F4 -> 80
A15: laufende Kosten für Druck | D15: ='Verwaltung@'!F14 -> 550
A16: Simkarten | D16: ='Verwaltung@'!F3 -> 180
A17: Versicherung Beachvolleyballplätze | D17: ='Verwaltung@'!F6 -> 400
A18: Gesamt: | D18: =SUM(D5:E17) -> 177910

Sheet Detailblatt I
A1: Detailblatt I | E1: Jahr - | F1: =Deckblatt!B1 -> 2025 | J1: Einnahmen | M1: Ausgaben | P1: nachrangig verwendbares Vj. Budget | Q1: davon verwendet | R1: Zuführung "Fortgeschr. finanz. Mittel" | S1: Übertrag ins nächste HH-Jahr
J2: PLAN | K2: IST | L2: SALDO | M2: PLAN | N2: IST | O2: SALDO
A3: Selbstverwaltung der Studentinnenschaft HTW Dresden
A4: Sachkontonr.
A5: 2749 | B5: Angestellte | C5: AAG (Aufwendungsausgleichsgesetz) | K5: 367.89 | L5: =K5 -> 367.89
A6: 4120 | C6: Gehälter | M6: 175000 | N6: 45249.61 | O6: =M6-SUM(N6:N11)+L5 -> 103225.29
A7: 4121 | C7: Lohnsteuer | N7: 2563.64
A8: 4170 | C8: Vermögenswirksame Leistungen | N8: 0
A9: 4130 | C9: gesetzl. sozial. Aufw. | N9: 22924.44
A10: 4138 | C10: Beitrag BG (Berufsgenossenschaft) | N10: 266.08
A11: 4956 | C11: Lohnbüro | N11: 1138.83
A12: 4110 | B12: AE (Aufwandsentschädigungen) | M12: 20000 | N12: 0 | O12: =M12-N12 -> 20000
B13: Sitzungsgeld | M13: 18000 | N13: 0 | O13: 18000
A14: 4640 | B14: Kaffee, Verpflegung & Verbrauchsgüter | M14: 1500 | N14: 640.91 | O14: 859.09
A15: 4670 | B15: Allgemeine Reisekosten (keiner Veranstaltung zugeordnet) | M15: 500 | N15: 0 | O15: 500
A16: 4909 | B16: Präsidium & Vorstand | M16: 0 | N16: 0 | O16: 0
B17: Karten Semesterticket | M17: 200 | N17: 0 | O17: 200
A18: 4930 | B18: Büro- und Verbrauchsmaterialien | M18: 100 | N18: 0 | O18: 100 | P18: 100 | Q18: =IF(O18<0,IF(P18>0,IF((O18*(-1))>P18,P18,O18*(-1)),0),0) -> 0 | R18: =IF(OR(Q18>P18,O18+P18<0),MAKRO1(),ROUNDDOWN(P18-Q18,-1)) -> 100 | S18: =IF(O18>0,ROUNDDOWN(O18,-1),0) -> 100
A19: 4943 | B19: Teilnahme Konferenzen | M19: 2000 | N19: 0 | O19: 2000 | P19: 2000 | Q19: =IF(O19<0,IF(P19>0,IF((O19*(-1))>P19,P19,O19*(-1)),0),0) -> 0 | R19: =IF(OR(Q19>P19,O19+P19<0),MAKRO1(),ROUNDDOWN(P19-Q19,-1)) -> 2000 | S19: =IF(O19>0,ROUNDDOWN(O19,-1),0) -> 2000
A20: 4944 | B20: Teilnahme Schulungen | M20: 250 | N20: 0 | O20: 250 | P20: 250 | Q20: =IF(O20<0,IF(P20>0,IF((O20*(-1))>P20,P20,O20*(-1)),0),0) -> 0 | R20: =IF(OR(Q20>P20,O20+P20<0),MAKRO1(),ROUNDDOWN(P20-Q20,-1)) -> 250 | S20: =IF(O20>0,ROUNDDOWN(O20,-1),0) -> 250
A21: 4945 | B21: Durchführung Konferenzen | J21: ='Detailblatt II'!F21 -> 1500 | K21: ='Detailblatt II'!G21 -> 0 | L21: ='Detailblatt II'!H21 -> -1500 | M21: ='Detailblatt II'!I21 -> 3500 | N21: ='Detailblatt II'!J21 -> 0 | O21: ='Detailblatt II'!K21 -> 3500 | P21: ='Detailblatt II'!L21 -> 3500 | Q21: ='Detailblatt II'!M21 -> 0 | R21: ='Detailblatt II'!N21 -> 3500 | S21: ='Detailblatt II'!O21 -> 3500 | T21: ← Zahlen auf Detailblatt 2 ändern!
A22: 4950 | B22: Rechts- und Beratungskosten | M22: 3000 | N22: 0 | O22: =M22-N22 -> 3000 | P22: 3000 | Q22: =IF(O22<0,IF(P22>0,IF((O22*(-1))>P22,P22,O22*(-1)),0),0) -> 0 | R22: =IF(OR(Q22>P22,O22+P22<0),MAKRO1(),ROUNDDOWN(P22-Q22,-1)) -> 3000 | S22: =IF(O22>0,ROUNDDOWN(O22,-1),0) -> 3000
A23: 4989 | B23: Ersatz- und Neuanschaffung | M23: 3000 | N23: 1128.51 | O23: =M23-N23 -> 1871.49 | P23: 2090 | Q23: =IF(O23<0,IF(P23>0,IF((O23*(-1))>P23,P23,O23*(-1)),0),0) -> 0 | R23: =IF(OR(Q23>P23,O23+P23<0),MAKRO1(),ROUNDDOWN(P23-Q23,-1)) -> 2090 | S23: =IF(O23>0,ROUNDDOWN(O23,-1),0) -> 1870
A24: Zwischensumme: | J24: =SUM(J5:J23) -> 1500 | K24: 367.89 | L24: -1132.11 | M24: 227050 | N24: 73912.02 | O24: 153505.87 | P24: =SUM(P18:P23) -> 10940 | Q24: =SUM(Q18:Q23) -> 0 | R24: =SUM(R18:R23) -> 10940 | S24: =SUM(S18:S23) -> 10720
A25: Referate
A26: 4960 | B26: Finanzen | J26: =Finanzen!D8 -> 0 | K26: =Finanzen!E8 -> 0 | L26: =K26-J26 -> 0 | M26: =Finanzen!G8 -> 3250 | N26: =Finanzen!H8 -> 882.93 | O26: =M26-N26 -> 2367.07
A27: 4961 | B27: Hochschulpolitik | J27: =Hochschulpolitik!C8 -> 0 | K27: =Hochschulpolitik!D8 -> 0 | L27: 0 | M27: =Hochschulpolitik!F8 -> 2500 | N27: =Hochschulpolitik!G8 -> 150 | O27: 2350 | P27: =Hochschulpolitik!I8 -> 1000 | Q27: =Hochschulpolitik!J8 -> 0 | R27: =Hochschulpolitik!K8 -> 1000 | S27: =Hochschulpolitik!L8 -> 2100
A28: 4962 | B28: Internationales | J28: =Internationales!C5 -> 0 | K28: =Internationales!D5 -> 0 | L28: 0 | M28: =Internationales!F5 -> 350 | N28: =Internationales!G5 -> 0 | O28: 350 | P28: =Internationales!I5 -> 50 | Q28: =Internationales!J5 -> 0 | R28: =Internationales!K5 -> 50 | S28: =Internationales!L5 -> 100
A29: 4963 | B29: Kultur | J29: =Kultur!C16 -> 25450 | K29: =Kultur!D16 -> 8033.19 | L29: -17416.81 | M29: =Kultur!F16 -> 27500 | N29: =Kultur!G16 -> 3800.87 | O29: 23699.13 | P29: =Kultur!I16 -> 15390 | Q29: =Kultur!J16 -> 0 | R29: =Kultur!K16 -> 15390 | S29: =Kultur!L16 -> 23430
A30: 4964 | B30: Öffentlichkeitsarbeit | J30: =Öffentlichkeitsarbeit!C8 -> 0 | K30: =Öffentlichkeitsarbeit!D8 -> 0 | L30: 0 | M30: =Öffentlichkeitsarbeit!F8 -> 7750 | N30: =Öffentlichkeitsarbeit!G8 -> 35.99 | O30: 7714.01 | P30: =Öffentlichkeitsarbeit!I8 -> 2270 | Q30: =Öffentlichkeitsarbeit!J8 -> 0 | R30: =Öffentlichkeitsarbeit!K8 -> 2270 | S30: =Öffentlichkeitsarbeit!L8 -> 7460
A31: 4965 | B31: Qualitätsmanagement | J31: =Qualitätsmanagement!C7 -> 0 | K31: =Qualitätsmanagement!D7 -> 0 | L31: 0 | M31: =Qualitätsmanagement!F7 -> 1250 | N31: =Qualitätsmanagement!G7 -> 0 | O31: 1250 | P31: =Qualitätsmanagement!I7 -> 690 | Q31: =Qualitätsmanagement!J7 -> 0 | R31: =Qualitätsmanagement!K7 -> 690 | S31: =Qualitätsmanagement!L7 -> 1000
A32: 4966 | B32: Soziales | J32: =Soziales!C6 -> 0 | K32: =Soziales!D6 -> 0 | L32: 0 | M32: =Soziales!F6 -> 1050 | N32: =Soziales!G6 -> 0 | O32: 1050 | P32: =Soziales!I6 -> 0 | Q32: =Soziales!J6 -> 0 | R32: =Soziales!K6 -> 0 | S32: =Soziales!L6 -> 800
A33: 4967 | B33: Sport | J33: =Sport!C14 -> 4100 | K33: =Sport!D14 -> 0 | L33: -4100 | M33: =Sport!F14 -> 6450 | N33: =Sport!G14 -> 0 | O33: 6450 | P33: =Sport!I14 -> 3650 | Q33: =Sport!J14 -> 0 | R33: =Sport!K14 -> 3650 | S33: =Sport!L14 -> 6200
A34: 4968 | B34: Studium | J34: =Studium!C6 -> 0 | K34: =Studium!D6 -> 0 | L34: 0 | M34: =Studium!F6 -> 1250 | N34: =Studium!G6 -> 0 | O34: 1250 | P34: =Studium!I6 -> 750 | Q34: =Studium!J6 -> 0 | R34: =Studium!K6 -> 750 | S34: =Studium!L6 -> 1250
A35: 4969 | B35: Studentische Selbstverwaltung & Organisation | J35: ='Verwaltung@'!C17 -> 9700 | K35: ='Verwaltung@'!D17 -> 415.55 | L35: -9284.45 | M35: ='Verwaltung@'!F17 -> 11586 | N35: ='Verwaltung@'!G17 -> 472.35 | O35: 11113.65 | P35: ='Verwaltung@'!I17 -> 17960 | Q35: ='Verwaltung@'!J17 -> 0 | R35: ='Verwaltung@'!K17 -> 17960 | S35: ='Verwaltung@'!L17 -> 4700
A36: 4946 | B36: Personal | J36: =Personal!C19 -> 0 | K36: =Personal!D19 -> 0 | L36: 0 | M36: =Personal!F19 -> 8250 | N36: =Personal!G19 -> 413.69 | O36: 7836.31 | P36: =Personal!I19 -> 5150 | Q36: =Personal!J19 -> 0 | R36: =Personal!K19 -> 5150 | S36: =Personal!L19 -> 7570
A37: ---- | B37: Ausschüsse des Studentinnenrates | J37: 0 | K37: 0 | L37: 0 | M37: 0 | N37: 0 | O37: 0
A38: ---- | B38: weitere Vertretungen | J38: 0 | K38: 0 | L38: 0 | M38: 0 | N38: 0 | O38: 0
A39: Zwischensumme: | J39: =SUM(J26:J38) -> 39250 | K39: 8448.74 | L39: -30801.26 | M39: 71186 | N39: 5755.83 | O39: 65430.17 | P39: =SUM(P27:P36) -> 46910 | Q39: =SUM(Q27:Q36) -> 0 | R39: =SUM(R27:R36) -> 46910 | S39: =SUM(S27:S36) -> 54610
A40: Ausschüsse der Studentinnenschaft
A41: ---- | B41: weitere Ausschüsse der Student:innenschaft | M41: 0 | N41: 0 | O41: =M41-N41 -> 0
A42: ---- | B42: Wahlausschuss der Student:innenschaft | M42: 0 | N42: 0 | O42: =M42-N42 -> 0
A43: 4941 | B43: HFA (Härtefallausschuss der Student:innenschaft) | M43: 4500 | N43: 921.84 | O43: =M43-N43 -> 3578.16
A44: Zwischensumme: | M44: =SUM(M41:M43) -> 4500 | N44: =SUM(N41:N43) -> 921.84 | O44: =SUM(O41:O43) -> 3578.16
A46: Anzahl der Studentinnen im: | F46: WiSe | G46: 25/26 | H46: SoSe | I46: 25
A47: gesamt: | F47: ='Detailblatt II'!D25 -> 4450 | H47: ='Detailblatt II'!D24 -> 4232
A48: #4942 Absicherung Teilnahme BuFaTas lt. Finanzordnung: | I48: 0.75 | M48: =ROUND(($F$47+$H$47)*$I$48,-2) -> 6500 | N48: 340 | O48: =M48-N48 -> 6160 | P48: 5620 | Q48: =IF(O48<0,IF(P48>0,IF((O48*(-1))>P48,P48,O48*(-1)),0),0) -> 0 | R48: =IF(OR(Q48>P48,O48+P48<0),MAKRO1(),ROUNDDOWN(P48-Q48,-1)) -> 5620 | S48: =IF(O48>0,ROUNDDOWN(O48,-1),0) -> 6160
A49: Zwischensumme: | M49: =SUM(M48:M48) -> 6500 | N49: 340 | O49: 6160 | P49: 5620 | Q49: 0 | R49: 5620 | S49: 6160
A50: Vertretungen der Student:innen
A51: ---- | B51: Vertretungen der Student:innen in der Hochschule | M51: 0 | N51: 0 | O51: =M51-N51 -> 0
A52: ---- | B52: Konferenz Sächsischer Studierendenschaft | M52: ='Detailblatt II'!I6 -> 3000 | N52: ='Detailblatt II'!J6 -> 5.97 | O52: =M52-N52 -> 2994.03
A53: ---- | B53: Interessenvertretungen der Student:innenschaft | M53: ='Detailblatt II'!I16 -> 5020 | N53: ='Detailblatt II'!J16 -> 60 | O53: =M53-N53 -> 4960
A54: ---- | B54: weitere Interessenvertetungen | M54: 0 | N54: 0 | O54: =M54-N54 -> 0
A55: Zwischensumme: | M55: =SUM(M51:M54) -> 8020 | N55: =SUM(N51:N54) -> 65.97 | O55: =SUM(O51:O54) -> 7954.03
A56: Gesamtsumme: | J56: =SUM(J55,J49,J44,J39,J24) -> 40750 | K56: 8816.63 | L56: -31933.37 | M56: 317256 | N56: 80995.66 | O56: 236628.23 | P56: =SUM(P24,P39,P49,P44,P55) -> 63470 | Q56: =SUM(Q49,Q39,Q24,Q44,Q55) -> 0 | R56: =SUM(R49,R39,R24,R44,R55) -> 63470 | S56: =SUM(S49,S39,S24,S44,S55) -> 71490

Sheet Detailblatt II
A1: Detailblatt II | B1: Jahr - | C1: =Deckblatt!B1 -> 2025 | E1: Häufigkeit | F1: Einnahmen | I1: Ausgaben | L1: nachrangig verwendbares Vj. Budget | M1: davon verwendet | N1: Zuführung "Fortgeschr. finanz. Mittel" | O1: Übertrag ins nächste HH-Jahr | P1: §5 Abs.4 S.2 FO
F2: PLAN | G2: IST | H2: SALDO | I2: PLAN | J2: IST | K2: SALDO
A3: Konferenz Sächsischer Studierendenschaften - Konto: 4981
A4: Finanzvereinbarung | E4: 1 | F4: 0 | G4: 0 | H4: =G4-F4 -> 0 | I4: =2500 -> 2500 | J4: 0 | K4: =I4-J4 -> 2500
A5: Förderung der KSS (so auch Domain kss-sachsen.de) | E5: 1 | F5: 0 | G5: 0 | H5: =G5-F5 -> 0 | I5: =500 -> 500 | J5: 5.97 | K5: =I5-J5 -> 494.03
D6: Zwischensumme: | F6: =SUM(F4:F5) -> 0 | G6: 0 | H6: 0 | I6: 3000 | J6: 5.97 | K6: 2994.03
A7: Interessenvertretungen der Studentinnenschaften - Konto: 4982
A8: faranto e.V. und Erasmus Student Network | F8: 0 | G8: 0 | H8: =G8-F8 -> 0 | I8: 1200 | J8: 0 | K8: =I8-J8 -> 1200
A9: bundesweite Interessenvertretungen (z.B. fzs etc.) | E9: 1 | F9: 0 | G9: 0 | H9: =G9-F9 -> 0 | I9: 3500 | J9: 0 | K9: 3500
A10: Bundesverband Ausländischer Studierender e. V. | E10: 1 | F10: 0 | G10: 0 | H10: =G10-F10 -> 0 | I10: 100 | J10: 0 | K10: 100
A11: Deutscher Akademischer Austausch Dienst e. V. | E11: 1 | F11: 0 | G11: 0 | H11: 0 | I11: 50 | J11: 0 | K11: 50
A12: Konferenz der Informatikfachschaften e. V. | E12: 1 | F12: 0 | G12: 0 | H12: 0 | I12: 60 | J12: 60 | K12: 0
A13: Konferenz der Geodäsie Studierenden e. V. | E13: 1 | F13: 0 | G13: 0 | H13: 0 | I13: 50 | J13: 0 | K13: 50
A14: Bundesfachschaft Landschaft e. V. | E14: 1 | F14: 0 | G14: 0 | H14: 0 | I14: 60 | J14: 0 | K14: 60
A15: weitere (ABS, bpm ) | F15: 0 | G15: 0 | H15: =G15-F15 -> 0 | I15: 0 | J15: 0 | K15: 0
D16: Zwischensumme: | F16: =SUM(F8:F15) -> 0 | G16: 0 | H16: 0 | I16: 5020 | J16: 60 | K16: 4960
A17: Durchführung Konferenzen - Konto: 4945
A18: O.S.T. Offenes Studierendentreffen (Bereich Bund/Land) /Hochschulpolitik | E18: 1 | F18: 0 | G18: 0 | H18: =G18-F18 -> 0 | I18: 500 | J18: 0 | K18: =I18-J18 -> 500 | L18: 500 | M18: =IF(K18<0,IF(L18>0,IF((K18*(-1))>L18,L18,K18*(-1)),0),0) -> 0 | N18: =IF(OR(M18>L18,K18+L18<0),MAKRO1(),ROUNDDOWN(L18-M18,-1)) -> 500 | O18: =IF(K18>0,ROUNDDOWN(K18,-1),0) -> 500 | P18: =(G18-J18+M18)-(F18-I18) -> 500
A19: BuFaTa | F19: 1500 | G19: 0 | H19: =G19-F19 -> -1500 | I19: 2000 | J19: 0 | K19: =I19-J19 -> 2000 | L19: 2000 | M19: =IF(K19<0,IF(L19>0,IF((K19*(-1))>L19,L19,K19*(-1)),0),0) -> 0 | N19: =IF(OR(M19>L19,K19+L19<0),MAKRO1(),ROUNDDOWN(L19-M19,-1)) -> 2000 | O19: =IF(K19>0,ROUNDDOWN(K19,-1),0) -> 2000 | P19: =(G19-J19+M19)-(F19-I19) -> 500
A20: weitere Konferenzen | F20: 0 | G20: 0 | H20: =G20-F20 -> 0 | I20: 1000 | J20: 0 | K20: =I20-J20 -> 1000 | L20: 1000 | M20: =IF(K20<0,IF(L20>0,IF((K20*(-1))>L20,L20,K20*(-1)),0),0) -> 0 | N20: =IF(OR(M20>L20,K20+L20<0),MAKRO1(),ROUNDDOWN(L20-M20,-1)) -> 1000 | O20: =IF(K20>0,ROUNDDOWN(K20,-1),0) -> 1000
D21: Zwischensumme: | F21: =SUM(F18:F20) -> 1500 | G21: 0 | H21: -1500 | I21: 3500 | J21: 0 | K21: 3500 | L21: 3500 | M21: 0 | N21: 3500 | O21: 3500 | P21: =(G21-J21+M21)-(F21-I21) -> 2000
A22: Beitragseinnahmen
A23: Anteilig WS 24/25 | B23: 23 | C23: x Student:innen | D23: 4712 | E23: 1 | F23: =ROUND((($B$23*$D$23)/6)*2,-2) -> 36100 | G23: =108376/6*2 -> 36125.33333 | H23: =G23-F23 -> 25.33333333 | I23: 0 | J23: 0 | K23: =I23-J23 -> 0
A24: SoSe 25 | B24: 26 | D24: 4232 | E24: 1 | F24: =ROUND($B$24*$D$24,-2) -> 110000 | H24: =G24-F24 -> -110000 | I24: 0 | J24: 0 | K24: =I24-J24 -> 0
A25: Anteilig WS 25/26 | B25: 26 | D25: 4450 | E25: 1 | F25: =ROUND((($B$25*$D$25)/6)*4,-2) -> 77100 | H25: =G25-F25 -> -77100 | I25: 0 | J25: 0 | K25: =I25-J25 -> 0
D26: Zwischensumme: | F26: =SUM(F23:F25) -> 223200 | G26: 36125.33333 | H26: -187074.6667 | I26: 0 | J26: 0 | K26: 0
A27: Vermögen
A28: Verfügbare finanzielle Mittel | F28: ='fortgeschr. Mittel+Konto'!D9 -> 237211.72 | H28: =G28-F28 -> -237211.72 | I28: 0 | J28: 0 | K28: =I28-J28 -> 0
A29: angeordnete Vermögensänderung lt. FO | F29: =Deckblatt!C7 -> 0 | H29: =G29-F29 -> 0 | I29: =IF(F28<Mindestreserve!D18,Mindestreserve!D18-F28,0) -> 0 | K29: =I29-J29 -> 0
A30: Zinsen auf Vermögen | F30: 0 | G30: 1574.45 | H30: =G30-F30 -> 1574.45 | I30: 0 | J30: 0 | K30: =I30-J30 -> 0
A31: geplante Veränderung des Vermögens Ansparen/Entnahme | F31: =Deckblatt!C6*(-1) -> 0 | G31: 0 | H31: =G31-F31 -> 0 | I31: =Deckblatt!F6 -> 6934 | J31: 0 | K31: =I31-J31 -> 6934
D32: Zwischensumme: | F32: =SUM(F28:F31) -> 237211.72 | G32: 1574.45 | H32: -235637.27 | I32: 6934 | J32: 0 | K32: 6934
A33: Gesamtsumme: | F33: =SUM(F26,F21,F16,F6) -> 224700 | G33: 36125.33333 | H33: -188574.6667 | I33: 11520 | J33: 65.97 | K33: 11454.03 | L33: 3500 | M33: 0 | N33: 3500 | O33: 3500 | P33: =(G33-J33+M33)-(F33-I33) -> -177120.6367

Sheet Finanzen
A1: Referat Finanzen | C1: Häufigkeit | D1: Einnahmen | G1: Ausgaben
D2: PLAN | E2: IST | F2: SALDO | G2: PLAN | H2: IST | I2: SALDO
A3: Kontoführung mit Onlinebanking | B3: Sachkonto: 4970 | C3: 12 | D3: 0 | E3: 0 | F3: =E3-D3 -> 0 | G3: 600 | H3: 294.25 | I3: =G3-H3 -> 305.75
A4: Buchhaltungssoftware AGENDA | B4: Sachkonto: 4955 | C4: 12 | D4: 0 | E4: 0 | F4: =E4-D4 -> 0 | G4: 1100 | H4: 446.25 | I4: =G4-H4 -> 653.75
A5: Nebenkosten Zahlungsverkehr | D5: 0 | E5: 0 | F5: 0 | G5: 1100 | H5: 142.43 | I5: =G5-H5 -> 957.57
A6: Förderverein Student:innenschaft HTWD | C6: 1 | D6: 0 | E6: 0 | F6: 0 | G6: 200 | H6: 0 | I6: =G6-H6 -> 200
A7: CoCo-Pauschale | D7: 0 | E7: 0 | F7: =E7-D7 -> 0 | G7: 250 | H7: 0 | I7: =G7-H7 -> 250
A8: Gesamtsumme: | D8: =SUM(D3:D7) -> 0 | E8: 0 | F8: 0 | G8: 3250 | H8: 882.93 | I8: 2367.07

Sheet Hochschulpolitik
A1: Referat Hochschulpolitik | B1: Häufigkeit | C1: Einnahmen | F1: Ausgaben | I1: nachrangig verwendbares Vj. Budget | J1: davon verwendet | K1: Zuführung "Fortgeschr. finanz. Mittel" | L1: Übertrag ins nächste HH-Jahr | M1: §5 Abs.4 S.2 FO
C2: PLAN | D2: IST | E2: SALDO | F2: PLAN | G2: IST | H2: SALDO
A3: Aktionstage gegen Sexismus und Homophobie | B3: 1 | C3: 0 | D3: 0 | E3: =D3-C3 -> 0 | F3: 100 | G3: 0 | H3: =F3-G3 -> 100 | I3: 100 | J3: =IF(H3<0,IF(I3>0,IF((H3*(-1))>I3,I3,H3*(-1)),0),0) -> 0 | K3: =IF(OR(J3>I3,H3+I3<0),MAKRO1(),ROUNDDOWN(I3-J3,-1)) -> 100 | L3: =IF(H3>0,ROUNDDOWN(H3,-1),0) -> 100 | M3: =(D3-G3+J3)-(C3-F3) -> 100
A4: Aktionen, Festivals und Demonstrationen | C4: 0 | D4: 0 | E4: =D4-C4 -> 0 | F4: 1000 | G4: 0 | H4: =F4-G4 -> 1000 | I4: 200 | J4: =IF(H4<0,IF(I4>0,IF((H4*(-1))>I4,I4,H4*(-1)),0),0) -> 0 | K4: =IF(OR(J4>I4,H4+I4<0),MAKRO1(),ROUNDDOWN(I4-J4,-1)) -> 200 | L4: =IF(H4>0,ROUNDDOWN(H4,-1),0) -> 1000 | M4: =(D4-G4+J4)-(C4-F4) -> 1000
A5: Förderverein HTW Dresden - Mitgliedsbeitrag | B5: 1 | C5: 0 | D5: 0 | E5: =D5-C5 -> 0 | F5: 150 | G5: 150 | H5: =F5-G5 -> 0 | I5: 0 | J5: =IF(H5<0,IF(I5>0,IF((H5*(-1))>I5,I5,H5*(-1)),0),0) -> 0 | K5: =IF(OR(J5>I5,H5+I5<0),MAKRO1(),ROUNDDOWN(I5-J5,-1)) -> 0 | L5: =IF(H5>0,ROUNDDOWN(H5,-1),0) -> 0 | M5: =(D5-G5+J5)-(C5-F5) -> 0
A6: politische Bildung / Umweltbildung | C6: 0 | D6: 0 | E6: =D6-C6 -> 0 | F6: 1000 | G6: 0 | H6: =F6-G6 -> 1000 | I6: 700 | J6: =IF(H6<0,IF(I6>0,IF((H6*(-1))>I6,I6,H6*(-1)),0),0) -> 0 | K6: =IF(OR(J6>I6,H6+I6<0),MAKRO1(),ROUNDDOWN(I6-J6,-1)) -> 700 | L6: =IF(H6>0,ROUNDDOWN(H6,-1),0) -> 1000 | M6: =(D6-G6+J6)-(C6-F6) -> 1000
A7: CoCo-Pauschale | C7: 0 | D7: 0 | E7: =D7-C7 -> 0 | F7: 250 | G7: 0 | H7: =F7-G7 -> 250 | J7: =IF(H7<0,IF(I7>0,IF((H7*(-1))>I7,I7,H7*(-1)),0),0) -> 0 | K7: =IF(OR(J7>I7,H7+I7<0),MAKRO1(),ROUNDDOWN(I7-J7,-1)) -> 0 | L7: =IF(H7>0,ROUNDDOWN(H7,-1),0) -> 250
A8: Gesamtsumme: | C8: =SUM(C3:C7) -> 0 | D8: 0 | E8: 0 | F8: 2500 | G8: 150 | H8: 2350 | I8: 1000 | J8: 0 | K8: 1000 | L8: =SUM(L3:L6) -> 2100 | M8: =(D8-G8+J8)-(C8-F8) -> 2350

Sheet Internationales
A1: Referat Internationales | B1: Häufigkeit | C1: Einnahmen | F1: Ausgaben | I1: nachrangig verwendbares Vj. Budget | J1: davon verwendet | K1: Zuführung "Fortgeschr. finanz. Mittel" | L1: Übertrag ins nächste HH-Jahr | M1: §5 Abs.4 S.2 FO
C2: PLAN | D2: IST | E2: SALDO | F2: PLAN | G2: IST | H2: SALDO
A3: Internationaler Tag | B3: 1 | C3: 0 | D3: 0 | E3: =D3-C3 -> 0 | F3: 100 | G3: 0 | H3: =F3-G3 -> 100 | I3: 50 | J3: =IF(H3<0,IF(I3>0,IF((H3*(-1))>I3,I3,H3*(-1)),0),0) -> 0 | K3: =IF(OR(J3>I3,H3+I3<0),MAKRO1(),ROUNDDOWN(I3-J3,-1)) -> 50 | L3: =IF(H3>0,ROUNDDOWN(H3,-1),0) -> 100 | M3: =(D3-G3+J3)-(C3-F3) -> 100
A4: CoCo-Pauschale | C4: 0 | D4: 0 | E4: =D4-C4 -> 0 | F4: 250 | G4: 0 | H4: =F4-G4 -> 250
A5: Gesamtsumme: | C5: =SUM(C3:C4) -> 0 | D5: 0 | E5: 0 | F5: 350 | G5: 0 | H5: 350 | I5: 50 | J5: 0 | K5: 50 | L5: 100 | M5: =(D5-G5+J5)-(C5-F5) -> 350

Sheet Kultur
A1: Referat Kultur | B1: Häufigkeit | C1: Einnahmen | F1: Ausgaben | I1: nachrangig verwendbares Vj. Budget | J1: davon verwendet | K1: Zuführung "Fortgeschr. finanz. Mittel" | L1: Übertrag ins nächste HH-Jahr | M1: §5 Abs.4 S.2 FO
C2: PLAN | D2: IST | E2: SALDO | F2: PLAN | G2: IST | H2: SALDO
A3: Kino in der Hochschule | C3: 800 | D3: 353.5 | E3: =D3-C3 -> -446.5 | F3: 800 | G3: 119.27 | H3: =F3-G3 -> 680.73 | I3: 320 | J3: =IF(H3<0,IF(I3>0,IF((H3*(-1))>I3,I3,H3*(-1)),0),0) -> 0 | K3: =IF(OR(J3>I3,H3+I3<0),MAKRO1(),ROUNDDOWN(I3-J3,-1)) -> 320 | L3: =IF(H3>0,ROUNDDOWN(H3,-1),0) -> 680 | M3: =(D3-G3+J3)-(C3-F3) -> 234.23
A4: Erstifahrten | C4: 3500 | D4: 0 | E4: -3500 | F4: 4000 | G4: 0 | H4: 4000 | I4: 4000 | J4: 0 | K4: =IF(OR(J4>I4,H4+I4<0),MAKRO1(),ROUNDDOWN(I4-J4,-1)) -> 4000 | L4: 4000 | M4: 500
A5: Semestereröffnungspartys (SEP) | B5: 2 | C5: 5000 | D5: 2615 | E5: -2385 | F5: 5000 | G5: 1921 | H5: 3079 | I5: 940 | J5: 0 | K5: =IF(OR(J5>I5,H5+I5<0),MAKRO1(),ROUNDDOWN(I5-J5,-1)) -> 940 | L5: 3070 | M5: 694
A6: Semesterabschlussfeier (SAF) | B6: 2 | C6: 3600 | D6: 1851.69 | E6: -1748.31 | F6: 3600 | G6: 507.64 | H6: 3092.36 | I6: 1380 | J6: 0 | K6: =IF(OR(J6>I6,H6+I6<0),MAKRO1(),ROUNDDOWN(I6-J6,-1)) -> 1380 | L6: 3090 | M6: 1344.05
A7: Bergfeste | C7: 0 | D7: 0 | E7: 0 | F7: 0 | G7: 0 | H7: 0 | I7: 1600 | J7: 0 | K7: =IF(OR(J7>I7,H7+I7<0),MAKRO1(),ROUNDDOWN(I7-J7,-1)) -> 1600 | L7: 0 | M7: 0
A8: Weihnachtsfeiern | C8: 3000 | D8: 0 | E8: -3000 | F8: 3500 | G8: 0 | H8: 3500 | I8: 3340 | J8: 0 | K8: =IF(OR(J8>I8,H8+I8<0),MAKRO1(),ROUNDDOWN(I8-J8,-1)) -> 3340 | L8: 3500 | M8: 500
A9: Fakultätsfeste & Sommerfeste | C9: 7100 | D9: 2802 | E9: -4298 | F9: 7600 | G9: 753.68 | H9: 6846.32 | I9: 2120 | J9: 0 | K9: =IF(OR(J9>I9,H9+I9<0),MAKRO1(),ROUNDDOWN(I9-J9,-1)) -> 2120 | L9: 6840 | M9: 2548.32
A10: LAN-Partys | C10: 250 | D10: 0 | E10: -250 | F10: 250 | G10: 0 | H10: 250 | I10: 750 | J10: 0 | K10: =IF(OR(J10>I10,H10+I10<0),MAKRO1(),ROUNDDOWN(I10-J10,-1)) -> 750 | L10: 250 | M10: 0
A11: Musikveranstaltung | B11: 1 | C11: 250 | D11: 0 | E11: -250 | F11: 250 | G11: 0 | H11: 250 | I11: 500 | J11: 0 | K11: =IF(OR(J11>I11,H11+I11<0),MAKRO1(),ROUNDDOWN(I11-J11,-1)) -> 500 | L11: 250 | M11: 0
A12: Literatur | C12: 150 | D12: 0 | E12: -150 | F12: 250 | G12: 0 | H12: 250 | I12: 0 | J12: 0 | K12: =IF(OR(J12>I12,H12+I12<0),MAKRO1(),ROUNDDOWN(I12-J12,-1)) -> 0 | L12: 250 | M12: 100
A13: Spieleabende | B13: 2 | C13: 300 | D13: 0 | E13: -300 | F13: 500 | G13: 0 | H13: 500 | I13: 140 | J13: 0 | K13: =IF(OR(J13>I13,H13+I13<0),MAKRO1(),ROUNDDOWN(I13-J13,-1)) -> 140 | L13: 500 | M13: 200
A14: Vernetzung von Student:innen der Hochschule | C14: 1500 | D14: 411 | E14: -1089 | F14: 1500 | G14: 499.28 | H14: 1000.72 | I14: 300 | J14: 0 | K14: =IF(OR(J14>I14,H14+I14<0),MAKRO1(),ROUNDDOWN(I14-J14,-1)) -> 300 | L14: 1000 | M14: -88.28
A15: CoCo-Pauschale | C15: 0 | D15: 0 | E15: 0 | F15: 250 | G15: 0 | H15: 250
A16: Gesamtsumme: | C16: =SUM(C3:C15) -> 25450 | D16: 8033.19 | E16: -17416.81 | F16: 27500 | G16: 3800.87 | H16: 23699.13 | I16: 15390 | J16: 0 | K16: 15390 | L16: 23430 | M16: =(D16-G16+J16)-(C16-F16) -> 6282.32

Sheet Öffentlichkeitsarbeit
A1: Referat Öffentlichkeitsarbeit | B1: Häufigkeit | C1: Einnahmen | F1: Ausgaben | I1: nachrangig verwendbares Vj. Budget | J1: davon verwendet | K1: Zuführung "Fortgeschr. finanz. Mittel" | L1: Übertrag ins nächste HH-Jahr | M1: §5 Abs.4 S.2 FO
C2: PLAN | D2: IST | E2: SALDO | F2: PLAN | G2: IST | H2: SALDO
A3: Hochschul- und Vorstellungsveranstaltungen | C3: 0 | D3: 0 | E3: =D3-C3 -> 0 | F3: 500 | G3: 0 | H3: =F3-G3 -> 500 | I3: =480+250 -> 730 | J3: =IF(H3<0,IF(I3>0,IF((H3*(-1))>I3,I3,H3*(-1)),0),0) -> 0 | K3: =IF(OR(J3>I3,H3+I3<0),MAKRO1(),ROUNDDOWN(I3-J3,-1)) -> 730 | L3: =IF(H3>0,ROUNDDOWN(H3,-1),0) -> 500 | M3: =(D3-G3+J3)-(C3-F3) -> 500
A4: Werbemittel (Kulis, Beutel, Plakate, T-Shirts etc.) | C4: 0 | D4: 0 | E4: =D4-C4 -> 0 | F4: 7000 | G4: 35.99 | H4: =F4-G4 -> 6964.01 | I4: 330 | J4: =IF(H4<0,IF(I4>0,IF((H4*(-1))>I4,I4,H4*(-1)),0),0) -> 0 | K4: =IF(OR(J4>I4,H4+I4<0),MAKRO1(),ROUNDDOWN(I4-J4,-1)) -> 330 | L4: =IF(H4>0,ROUNDDOWN(H4,-1),0) -> 6960 | M4: =(D4-G4+J4)-(C4-F4) -> 6964.01
A5: Werbemittel Änderung Logo 2023 | C5: 0 | D5: 0 | E5: =D5-C5 -> 0 | F5: 0 | G5: 0 | H5: =F5-G5 -> 0 | I5: 1200 | J5: =IF(H5<0,IF(I5>0,IF((H5*(-1))>I5,I5,H5*(-1)),0),0) -> 0 | K5: =IF(OR(J5>I5,H5+I5<0),MAKRO1(),ROUNDDOWN(I5-J5,-1)) -> 1200 | L5: =IF(H5>0,ROUNDDOWN(H5,-1),0) -> 0 | M5: =(D5-G5+J5)-(C5-F5) -> 0
A6: Merchandise u.ä. | C6: 0 | D6: 0 | E6: =D6-C6 -> 0 | F6: 0 | G6: 0 | H6: =F6-G6 -> 0 | I6: 10 | J6: =IF(H6<0,IF(I6>0,IF((H6*(-1))>I6,I6,H6*(-1)),0),0) -> 0 | K6: =IF(OR(J6>I6,H6+I6<0),MAKRO1(),ROUNDDOWN(I6-J6,-1)) -> 10 | L6: =IF(H6>0,ROUNDDOWN(H6,-1),0) -> 0 | M6: =(D6-G6+J6)-(C6-F6) -> 0
A7: CoCo-Pauschale | C7: 0 | D7: 0 | E7: =D7-C7 -> 0 | F7: 250 | G7: 0 | H7: =F7-G7 -> 250
A8: Gesamtsumme: | C8: =SUM(C3:C7) -> 0 | D8: 0 | E8: 0 | F8: 7750 | G8: 35.99 | H8: 7714.01 | I8: 2270 | J8: 0 | K8: 2270 | L8: 7460 | M8: =(D8-G8+J8)-(C8-F8) -> 7714.01

Sheet Qualitätsmanagement
A1: Referat Qualitätsmanagement | B1: Häufigkeit | C1: Einnahmen | F1: Ausgaben | I1: nachrangig verwendbares Vj. Budget | J1: davon verwendet | K1: Zuführung "Fortgeschr. finanz. Mittel" | L1: Übertrag ins nächste HH-Jahr | M1: §5 Abs.4 S.2 FO
C2: PLAN | D2: IST | E2: SALDO | F2: PLAN | G2: IST | H2: SALDO
A3: Veranstaltung zu Erste Hilfe | C3: 0 | D3: 0 | E3: =D3-C3 -> 0 | F3: 500 | G3: 0 | H3: =F3-G3 -> 500 | I3: 500 | J3: =IF(H3<0,IF(I3>0,IF((H3*(-1))>I3,I3,H3*(-1)),0),0) -> 0 | K3: =IF(OR(J3>I3,H3+I3<0),MAKRO1(),ROUNDDOWN(I3-J3,-1)) -> 500 | L3: =IF(H3>0,ROUNDDOWN(H3,-1),0) -> 500 | M3: =(D3-G3+J3)-(C3-F3) -> 500
A4: Veranstaltung Erstsemestereinführung (ESE) | B4: 1 | C4: 0 | D4: 0 | E4: =D4-C4 -> 0 | F4: 500 | G4: 0 | H4: =F4-G4 -> 500 | I4: 190 | J4: =IF(H4<0,IF(I4>0,IF((H4*(-1))>I4,I4,H4*(-1)),0),0) -> 0 | K4: =IF(OR(J4>I4,H4+I4<0),MAKRO1(),ROUNDDOWN(I4-J4,-1)) -> 190 | L4: =IF(H4>0,ROUNDDOWN(H4,-1),0) -> 500 | M4: =(D4-G4+J4)-(C4-F4) -> 500
A5: Systemakkreditierung | C5: 0 | D5: 0 | E5: =D5-C5 -> 0 | F5: 0 | G5: 0 | H5: =F5-G5 -> 0 | I5: 0 | J5: =IF(H5<0,IF(I5>0,IF((H5*(-1))>I5,I5,H5*(-1)),0),0) -> 0 | K5: =IF(OR(J5>I5,H5+I5<0),MAKRO1(),ROUNDDOWN(I5-J5,-1)) -> 0 | L5: =IF(H5>0,ROUNDDOWN(H5,-1),0) -> 0 | M5: =(D5-G5+J5)-(C5-F5) -> 0
A6: CoCo-Pauschale | C6: 0 | D6: 0 | E6: =D6-C6 -> 0 | F6: 250 | G6: 0 | H6: =F6-G6 -> 250
A7: Gesamtsumme: | C7: =SUM(C3:C6) -> 0 | D7: 0 | E7: 0 | F7: 1250 | G7: 0 | H7: 1250 | I7: 690 | J7: 0 | K7: 690 | L7: 1000 | M7: =(D7-G7+J7)-(C7-F7) -> 1250

Sheet Soziales
A1: Referat Soziales | B1: Häufigkeit | C1: Einnahmen | F1: Ausgaben | I1: nachrangig verwendbares Vj. Budget | J1: davon verwendet | K1: Zuführung "Fortgeschr. finanz. Mittel" | L1: Übertrag ins nächste HH-Jahr | M1: §5 Abs.4 S.2 FO
C2: PLAN | D2: IST | E2: SALDO | F2: PLAN | G2: IST | H2: SALDO
A3: Beratungen | C3: 0 | D3: 0 | E3: =D3-C3 -> 0 | F3: 300 | G3: 0 | H3: =F3-G3 -> 300 | I3: 0 | J3: =IF(H3<0,IF(I3>0,IF((H3*(-1))>I3,I3,H3*(-1)),0),0) -> 0 | K3: =IF(OR(J3>I3,H3+I3<0),MAKRO1(),ROUNDDOWN(I3-J3,-1)) -> 0 | L3: =IF(H3>0,ROUNDDOWN(H3,-1),0) -> 300 | M3: =(D3-G3+J3)-(C3-F3) -> 300
A4: Veranstaltungen zu sozialen Belangen | B4: 2 | C4: 0 | D4: 0 | E4: =D4-C4 -> 0 | F4: 500 | G4: 0 | H4: =F4-G4 -> 500 | I4: 0 | J4: =IF(H4<0,IF(I4>0,IF((H4*(-1))>I4,I4,H4*(-1)),0),0) -> 0 | K4: =IF(OR(J4>I4,H4+I4<0),MAKRO1(),ROUNDDOWN(I4-J4,-1)) -> 0 | L4: =IF(H4>0,ROUNDDOWN(H4,-1),0) -> 500 | M4: =(D4-G4+J4)-(C4-F4) -> 500
A5: CoCo-Pauschale | C5: 0 | D5: 0 | E5: =D5-C5 -> 0 | F5: 250 | G5: 0 | H5: =F5-G5 -> 250
A6: Gesamtsumme: | C6: =SUM(C3:C5) -> 0 | D6: 0 | E6: 0 | F6: 1050 | G6: 0 | H6: 1050 | I6: 0 | J6: 0 | K6: 0 | L6: 800 | M6: =(D6-G6+J6)-(C6-F6) -> 1050

Sheet Sport
A1: Referat Sport | B1: Häufigkeit | C1: Einnahmen | F1: Ausgaben | I1: nachrangig verwendbares Vj. Budget | J1: davon verwendet | K1: Zuführung "Fortgeschr. finanz. Mittel" | L1: Übertrag ins nächste HH-Jahr | M1: §5 Abs.4 S.2 FO
C2: PLAN | D2: IST | E2: SALDO | F2: PLAN | G2: IST | H2: SALDO
A3: Turniere, Preise, Beiträge | C3: 0 | D3: 0 | E3: =D3-C3 -> 0 | F3: 500 | G3: 0 | H3: =F3-G3 -> 500 | I3: 500 | J3: =IF(H3<0,IF(I3>0,IF((H3*(-1))>I3,I3,H3*(-1)),0),0) -> 0 | K3: =IF(OR(J3>I3,H3+I3<0),MAKRO1(),ROUNDDOWN(I3-J3,-1)) -> 500 | L3: =IF(H3>0,ROUNDDOWN(H3,-1),0) -> 500 | M3: =(D3-G3+J3)-(C3-F3) -> 500
A4: Nikolausvolleyballturnier | C4: 700 | D4: 0 | E4: -700 | F4: 1000 | G4: 0 | H4: 1000 | I4: 410 | J4: 0 | K4: =IF(OR(J4>I4,H4+I4<0),MAKRO1(),ROUNDDOWN(I4-J4,-1)) -> 410 | L4: 1000 | M4: 300
A5: Startgebühren | C5: 0 | D5: 0 | E5: 0 | F5: 200 | G5: 0 | H5: 200 | I5: 200 | J5: 0 | K5: =IF(OR(J5>I5,H5+I5<0),MAKRO1(),ROUNDDOWN(I5-J5,-1)) -> 200 | L5: 200 | M5: 200
A6: Drachenbootrennen | B6: 1 | C6: 0 | D6: 0 | E6: 0 | F6: 0 | G6: 0 | H6: 0 | I6: 0 | J6: 0 | K6: =IF(OR(J6>I6,H6+I6<0),MAKRO1(),ROUNDDOWN(I6-J6,-1)) -> 0 | L6: 0 | M6: 0
A7: sächsische Beachmeisterschaften | B7: 1 | C7: 0 | D7: 0 | E7: 0 | F7: 0 | G7: 0 | H7: 0 | I7: 0 | J7: 0 | K7: =IF(OR(J7>I7,H7+I7<0),MAKRO1(),ROUNDDOWN(I7-J7,-1)) -> 0 | L7: 0 | M7: 0
A8: Beachfeier | C8: 1000 | D8: 0 | E8: -1000 | F8: 1000 | G8: 0 | H8: 1000 | I8: 0 | J8: 0 | K8: =IF(OR(J8>I8,H8+I8<0),MAKRO1(),ROUNDDOWN(I8-J8,-1)) -> 0 | L8: 1000 | M8: 0
A9: Gesundheitsmanagement | B9: 1 | C9: 0 | D9: 0 | E9: 0 | F9: 500 | G9: 0 | H9: 500 | I9: 500 | J9: 0 | K9: =IF(OR(J9>I9,H9+I9<0),MAKRO1(),ROUNDDOWN(I9-J9,-1)) -> 500 | L9: 500 | M9: 500
A10: Ausflüge | B10: 1 | C10: 400 | D10: 0 | E10: -400 | F10: 500 | G10: 0 | H10: 500 | I10: 300 | J10: 0 | K10: =IF(OR(J10>I10,H10+I10<0),MAKRO1(),ROUNDDOWN(I10-J10,-1)) -> 300 | L10: 500 | M10: 100
A11: Hochschulsportfest | B11: 1 | C11: 0 | D11: 0 | E11: 0 | F11: 0 | G11: 0 | H11: 0 | I11: 0 | J11: 0 | K11: =IF(OR(J11>I11,H11+I11<0),MAKRO1(),ROUNDDOWN(I11-J11,-1)) -> 0 | L11: 0 | M11: 0
A12: Sportevents (Eislaufen, Lasertag, Trampolinpark) | C12: 2000 | D12: 0 | E12: -2000 | F12: 2500 | G12: 0 | H12: 2500 | I12: 1740 | J12: 0 | K12: =IF(OR(J12>I12,H12+I12<0),MAKRO1(),ROUNDDOWN(I12-J12,-1)) -> 1740 | L12: 2500 | M12: 500
A13: CoCo-Pauschale | C13: 0 | D13: 0 | E13: 0 | F13: 250 | G13: 0 | H13: 250
A14: Gesamtsumme: | C14: =SUM(C3:C13) -> 4100 | D14: 0 | E14: -4100 | F14: 6450 | G14: 0 | H14: 6450 | I14: 3650 | J14: 0 | K14: 3650 | L14: 6200 | M14: =(D14-G14+J14)-(C14-F14) -> 2350

Sheet Studium
A1: Referat Studium | B1: Häufigkeit | C1: Einnahmen | F1: Ausgaben | I1: nachrangig verwendbares Vj. Budget | J1: davon verwendet | K1: Zuführung "Fortgeschr. finanz. Mittel" | L1: Übertrag ins nächste HH-Jahr | M1: §5 Abs.4 S.2 FO
C2: PLAN | D2: IST | E2: SALDO | F2: PLAN | G2: IST | H2: SALDO
A3: Veranstaltung lange Nacht des Studierens | B3: 1 | C3: 0 | D3: 0 | E3: =D3-C3 -> 0 | F3: 500 | G3: 0 | H3: =F3-G3 -> 500 | I3: 0 | J3: =IF(H3<0,IF(I3>0,IF((H3*(-1))>I3,I3,H3*(-1)),0),0) -> 0 | K3: =IF(OR(J3>I3,H3+I3<0),MAKRO1(),ROUNDDOWN(I3-J3,-1)) -> 0 | L3: =IF(H3>0,ROUNDDOWN(H3,-1),0) -> 500 | M3: =(D3-G3+J3)-(C3-F3) -> 500
A4: Rechtskosten Prüfungsangelegenheiten | C4: 0 | D4: 0 | E4: =D4-C4 -> 0 | F4: 750 | G4: 0 | H4: =F4-G4 -> 750 | I4: 750 | J4: =IF(H4<0,IF(I4>0,IF((H4*(-1))>I4,I4,H4*(-1)),0),0) -> 0 | K4: =IF(OR(J4>I4,H4+I4<0),MAKRO1(),ROUNDDOWN(I4-J4,-1)) -> 750 | L4: =IF(H4>0,ROUNDDOWN(H4,-1),0) -> 750 | M4: =(D4-G4+J4)-(C4-F4) -> 750
A5: CoCo-Pauschale | C5: 0 | D5: 0 | E5: =D5-C5 -> 0 | F5: =250-250 -> 0 | G5: 0 | H5: =F5-G5 -> 0
A6: Gesamtsumme: | C6: =SUM(C3:C5) -> 0 | D6: 0 | E6: 0 | F6: 1250 | G6: 0 | H6: 1250 | I6: 750 | J6: 0 | K6: 750 | L6: 1250 | M6: =(D6-G6+J6)-(C6-F6) -> 1250

Sheet Verwaltung@
A1: Referat studentische Selbstverwaltung & Organisation | B1: Häufigkeit | C1: Einnahmen | F1: Ausgaben | I1: nachrangig verwendbares Vj. Budget | J1: davon verwendet | K1: Zuführung "Fortgeschr. finanz. Mittel" | L1: Übertrag ins nächste HH- Jahr | M1: §5 Abs.4 S.2 FO
C2: PLAN | D2: IST | E2: SALDO | F2: PLAN | G2: IST | H2: SALDO
A3: Simkarten | C3: 0 | D3: 0 | E3: =D3-C3 -> 0 | F3: 180 | G3: 39.92 | H3: =F3-G3 -> 140.08 | I3: 60 | J3: =IF(H3<0,IF(I3>0,IF((H3*(-1))>I3,I3,H3*(-1)),0),0) -> 0 | K3: =IF(OR(J3>I3,H3+I3<0),MAKRO1(),ROUNDDOWN(I3-J3,-1)) -> 60 | L3: =IF(H3>0,ROUNDDOWN(H3,-1),0) -> 140 | M3: =(D3-G3+J3)-(C3-F3) -> 140.08
A4: Domains | C4: 0 | D4: 0 | E4: =D4-C4 -> 0 | F4: 80 | G4: 13.95 | H4: =F4-G4 -> 66.05 | I4: 60 | J4: 0 | K4: =IF(OR(J4>I4,H4+I4<0),MAKRO1(),ROUNDDOWN(I4-J4,-1)) -> 60 | L4: 60 | M4: 66.05
A5: Beitrag Gruppenausweis für Jugendherbergen | B5: 1 | C5: 0 | D5: 0 | E5: =D5-C5 -> 0 | F5: 26 | G5: 0 | H5: =F5-G5 -> 26 | I5: 0 | J5: 0 | K5: =IF(OR(J5>I5,H5+I5<0),MAKRO1(),ROUNDDOWN(I5-J5,-1)) -> 0 | L5: 20 | M5: 26
A6: Versicherung Beachvolleyballplätze | C6: 0 | D6: 0 | E6: 0 | F6: 400 | G6: 259.4 | H6: 0 | I6: 0 | J6: 0 | K6: =IF(OR(J6>I6,H6+I6<0),MAKRO1(),ROUNDDOWN(I6-J6,-1)) -> 0 | L6: 0 | M6: 140.6
A7: Aufbau drittes Feld Beachvolleyballplätze | C7: 6000 | D7: 0 | E7: 0 | F7: 6000 | G7: 0 | H7: 0 | I7: 0 | J7: 0 | K7: =IF(OR(J7>I7,H7+I7<0),MAKRO1(),ROUNDDOWN(I7-J7,-1)) -> 0 | L7: 0 | M7: 0
A8: Dienste für elektronische Datenverarbeitung | C8: 0 | D8: 0 | E8: =D8-C8 -> 0 | F8: 0 | G8: 0 | H8: =F8-G8 -> 0 | I8: 15000 | J8: 0 | K8: =IF(OR(J8>I8,H8+I8<0),MAKRO1(),ROUNDDOWN(I8-J8,-1)) -> 15000 | L8: 0 | M8: 0
A9: andauernde Betreuung Server durch Externe | C9: 0 | D9: 0 | E9: 0 | F9: 0 | G9: 0 | H9: 0 | I9: 0 | J9: 0 | K9: =IF(OR(J9>I9,H9+I9<0),MAKRO1(),ROUNDDOWN(I9-J9,-1)) -> 0 | L9: 0 | M9: 0
A10: Beiträge/Gebühren | C10: 0 | D10: 0 | E10: 0 | F10: 0 | G10: 0 | H10: 0 | I10: 230 | J10: 0 | K10: =IF(OR(J10>I10,H10+I10<0),MAKRO1(),ROUNDDOWN(I10-J10,-1)) -> 230 | L10: 0 | M10: 0
A11: Büromaterial und -ausstattung | C11: 0 | D11: 0 | E11: 0 | F11: 500 | G11: 48.72 | H11: 451.28 | I11: 460 | J11: 0 | K11: =IF(OR(J11>I11,H11+I11<0),MAKRO1(),ROUNDDOWN(I11-J11,-1)) -> 460 | L11: 450 | M11: 451.28
A12: Studienmaterial (z.B. Bautabellen, etc.) | C12: 700 | D12: 0 | E12: -700 | F12: 700 | G12: 0 | H12: 700 | I12: 700 | J12: 0 | K12: =IF(OR(J12>I12,H12+I12<0),MAKRO1(),ROUNDDOWN(I12-J12,-1)) -> 700 | L12: 700 | M12: 0
A13: Getränkeautomat | C13: 1000 | D13: 359.55 | E13: -640.45 | F13: 900 | G13: 55.02 | H13: 844.98 | I13: 380 | J13: 0 | K13: =IF(OR(J13>I13,H13+I13<0),MAKRO1(),ROUNDDOWN(I13-J13,-1)) -> 380 | L13: 840 | M13: 204.53
A14: laufende Kosten für Druck, samt Nebenkosten | C14: 0 | D14: 0 | E14: 0 | F14: 550 | G14: 55.34 | H14: 494.66 | I14: 100 | J14: 0 | K14: =IF(OR(J14>I14,H14+I14<0),MAKRO1(),ROUNDDOWN(I14-J14,-1)) -> 100 | L14: 490 | M14: 494.66
A15: Laborkittel An- & Verkauf | C15: 2000 | D15: 56 | E15: -1944 | F15: 2000 | G15: 0 | H15: 2000 | I15: 970 | J15: 0 | K15: =IF(OR(J15>I15,H15+I15<0),MAKRO1(),ROUNDDOWN(I15-J15,-1)) -> 970 | L15: 2000 | M15: 56
A16: CoCo-Pauschale | C16: 0 | D16: 0 | E16: 0 | F16: 250 | G16: 0 | H16: 250
A17: Gesamtsumme: | C17: =SUM(C3:C16) -> 9700 | D17: 415.55 | E17: -3284.45 | F17: 11586 | G17: 472.35 | H17: 4973.05 | I17: 17960 | J17: 0 | K17: 17960 | L17: 4700 | M17: =(D17-G17+J17)-(C17-F17) -> 1829.2

Sheet Personal
A1: Referat Personal | B1: Häufigkeit | C1: Einnahmen | F1: Ausgaben | I1: nachrangig verwendbares Vj. Budget | J1: davon verwendet | K1: Zuführung "Fortgeschr. finanz. Mittel" | L1: Übertrag ins nächste HH-Jahr | M1: §5 Abs.4 S.2 FO
C2: PLAN | D2: IST | E2: SALDO | F2: PLAN | G2: IST | H2: SALDO
A3: Schulungen
A4: Akkreditierung / Qualitätsmanagement | C4: 0 | D4: 0 | E4: =D4-C4 -> 0 | F4: 1800 | G4: 0 | H4: =F4-G4 -> 1800 | I4: 1800 | J4: =IF(H4<0,IF(I4>0,IF((H4*(-1))>I4,I4,H4*(-1)),0),0) -> 0 | K4: =IF(OR(J4>I4,H4+I4<0),MAKRO1(),ROUNDDOWN(I4-J4,-1)) -> 1800 | L4: =IF(H4>0,ROUNDDOWN(H4,-1),0) -> 1800 | M4: =(D4-G4+J4)-(C4-F4) -> 1800
A5: Sozialberatung (BaföG, Jobberatung) / Soziales | C5: 0 | D5: 0 | E5: 0 | F5: 250 | G5: 0 | H5: 250 | I5: 180 | J5: 0 | K5: =IF(OR(J5>I5,H5+I5<0),MAKRO1(),ROUNDDOWN(I5-J5,-1)) -> 180 | L5: 250 | M5: 250
A6: studentische und akademische Selbstverwaltung (Studienprüfungsordnung) / Studium | C6: 0 | D6: 0 | E6: 0 | F6: 100 | G6: 0 | H6: 100 | I6: 100 | J6: 0 | K6: =IF(OR(J6>I6,H6+I6<0),MAKRO1(),ROUNDDOWN(I6-J6,-1)) -> 100 | L6: 100 | M6: 100
A7: Prüfungsangelegenheiten / Studium | C7: 0 | D7: 0 | E7: 0 | F7: 250 | G7: 0 | H7: 250 | I7: 250 | J7: 0 | K7: =IF(OR(J7>I7,H7+I7<0),MAKRO1(),ROUNDDOWN(I7-J7,-1)) -> 250 | L7: 250 | M7: 250
A8: pol. Bildung, Antidiskriminierung, Gleichstellung / Hochschulpolitik | C8: 0 | D8: 0 | E8: 0 | F8: 100 | G8: 0 | H8: 100 | I8: 100 | J8: 0 | K8: =IF(OR(J8>I8,H8+I8<0),MAKRO1(),ROUNDDOWN(I8-J8,-1)) -> 100 | L8: 100 | M8: 100
A9: interne Seminare | B9: 1 | C9: 0 | D9: 0 | E9: 0 | F9: 1000 | G9: 177.06 | H9: 822.94 | I9: =350+30 -> 380 | J9: 0 | K9: =IF(OR(J9>I9,H9+I9<0),MAKRO1(),ROUNDDOWN(I9-J9,-1)) -> 380 | L9: 820 | M9: 822.94
A10: Clearance and Rapprochement (CLARA) / StuRa (Kanzlei) | B10: 1 | C10: 0 | D10: 0 | E10: 0 | F10: 0 | G10: 0 | H10: 0 | I10: 150 | J10: 0 | K10: =IF(OR(J10>I10,H10+I10<0),MAKRO1(),ROUNDDOWN(I10-J10,-1)) -> 150 | L10: 0 | M10: 0
A11: Veranstaltung zur fachlichen Weiterbildung / Studium | C11: 0 | D11: 0 | E11: 0 | F11: 250 | G11: 0 | H11: 250 | I11: 250 | J11: 0 | K11: =IF(OR(J11>I11,H11+I11<0),MAKRO1(),ROUNDDOWN(I11-J11,-1)) -> 250 | L11: 250 | M11: 250
A12: Allgemeines
A13: Informationen zu Kandidierenden | C13: 0 | D13: 0 | E13: =D13-C13 -> 0 | F13: 0 | G13: 0 | H13: =F13-G13 -> 0 | I13: 100 | J13: =IF(H13<0,IF(I13>0,IF((H13*(-1))>I13,I13,H13*(-1)),0),0) -> 0 | K13: =IF(OR(J13>I13,H13+I13<0),MAKRO1(),ROUNDDOWN(I13-J13,-1)) -> 100 | L13: =IF(H13>0,ROUNDDOWN(H13,-1),0) -> 0 | M13: =(D13-G13+J13)-(C13-F13) -> 0
A14: auswärtige Arbeitstreffen und Tagungen | C14: 0 | D14: 0 | E14: =D14-C14 -> 0 | F14: 2000 | G14: 0 | H14: 2000 | I14: =500+500 -> 1000 | J14: =IF(H14<0,IF(I14>0,IF((H14*(-1))>I14,I14,H14*(-1)),0),0) -> 0 | K14: =IF(OR(J14>I14,H14+I14<0),MAKRO1(),ROUNDDOWN(I14-J14,-1)) -> 1000 | L14: =IF(H14>0,ROUNDDOWN(H14,-1),0) -> 2000 | M14: =(D14-G14+J14)-(C14-F14) -> 2000
A15: Integration (Veranstaltungen zum internen Zusammenhalt) | C15: 0 | D15: 0 | E15: =D15-C15 -> 0 | F15: 500 | G15: 156 | H15: 344 | I15: 370 | J15: =IF(H15<0,IF(I15>0,IF((H15*(-1))>I15,I15,H15*(-1)),0),0) -> 0 | K15: =IF(OR(J15>I15,H15+I15<0),MAKRO1(),ROUNDDOWN(I15-J15,-1)) -> 370 | L15: =IF(H15>0,ROUNDDOWN(H15,-1),0) -> 340 | M15: =(D15-G15+J15)-(C15-F15) -> 344
A16: StuRa Bekleidung | C16: 0 | D16: 0 | E16: 0 | F16: 1000 | G16: 0 | H16: 1000 | I16: 0 | J16: =IF(H16<0,IF(I16>0,IF((H16*(-1))>I16,I16,H16*(-1)),0),0) -> 0 | K16: =IF(OR(J16>I16,H16+I16<0),MAKRO1(),ROUNDDOWN(I16-J16,-1)) -> 0 | L16: =IF(H16>0,ROUNDDOWN(H16,-1),0) -> 1000 | M16: =(D16-G16+J16)-(C16-F16) -> 1000
A17: Kennenlern-Veranstaltungen | B17: 2 | C17: 0 | D17: 0 | E17: 0 | F17: 750 | G17: 80.63 | H17: 669.37 | I17: 470 | J17: =IF(H17<0,IF(I17>0,IF((H17*(-1))>I17,I17,H17*(-1)),0),0) -> 0 | K17: =IF(OR(J17>I17,H17+I17<0),MAKRO1(),ROUNDDOWN(I17-J17,-1)) -> 470 | L17: =IF(H17>0,ROUNDDOWN(H17,-1),0) -> 660 | M17: =(D17-G17+J17)-(C17-F17) -> 669.37
A18: CoCo-Pauschale | C18: 0 | D18: 0 | E18: =D18-C18 -> 0 | F18: 250 | G18: 0 | H18: 250
A19: Gesamtsumme: | C19: =SUM(C4:C18) -> 0 | D19: 0 | E19: 0 | F19: 8250 | G19: 413.69 | H19: 7836.31 | I19: 5150 | J19: 0 | K19: 5150 | L19: 7570 | M19: =(D19-G19+J19)-(C19-F19) -> 7836.31
